Department family,Entity,Date,Expense Type,Expense area,Supplier,Transaction number,AP Amount (�)
Department of Health,NHS Barnsley CCG,31/08/2017,Clinical&Medical-Commercial Sector,LEARNING DIFFICULTIES,ASC HEALTHCARE LTD,18476133,"58,395.01 "
Department of Health,NHS Barnsley CCG,31/08/2017,Clinical&Medical-Commercial Sector,OUT OF HOURS,BARNSLEY HEALTHCARE FEDERATION,18250030,"115,909.00 "
Department of Health,NHS Barnsley CCG,31/08/2017,Miscellaneous Expenditure (L9),PROGRAMME PROJECTS,BARNSLEY HEALTHCARE FEDERATION,18250033,"127,632.91 "
Department of Health,NHS Barnsley CCG,31/08/2017,C&M-APMS Contract Value,PRC DELEGATED CO-COMMISSIONING,BARNSLEY HEALTHCARE FEDERATION,18349048,"25,167.82 "
Department of Health,NHS Barnsley CCG,31/08/2017,C&M-APMS DES Minor Surgery,PRC DELEGATED CO-COMMISSIONING,BARNSLEY HEALTHCARE FEDERATION,18349048,170.48 
Department of Health,NHS Barnsley CCG,31/08/2017,C&M-APMS OOH Opt Outs,PRC DELEGATED CO-COMMISSIONING,BARNSLEY HEALTHCARE FEDERATION,18349048,713.75 
Department of Health,NHS Barnsley CCG,31/08/2017,C&M-APMS Prem Actual Rent,PRC DELEGATED CO-COMMISSIONING,BARNSLEY HEALTHCARE FEDERATION,18349048,"1,310.42 "
Department of Health,NHS Barnsley CCG,31/08/2017,C&M-PMS Prem Actual Rent,PRC DELEGATED CO-COMMISSIONING,BARNSLEY HEALTHCARE FEDERATION,18349048,"1,310.42 "
Department of Health,NHS Barnsley CCG,31/08/2017,C&M-PMS QOF Aspiration,PRC DELEGATED CO-COMMISSIONING,BARNSLEY HEALTHCARE FEDERATION,18349048,"2,442.47 "
Department of Health,NHS Barnsley CCG,31/08/2017,C&M-APMS Contract Value,PRC DELEGATED CO-COMMISSIONING,BARNSLEY HEALTHCARE FEDERATION,18349049,"(17,006.70)"
Department of Health,NHS Barnsley CCG,31/08/2017,C&M-APMS OOH Opt Outs,PRC DELEGATED CO-COMMISSIONING,BARNSLEY HEALTHCARE FEDERATION,18349049,"(1,437.29)"
Department of Health,NHS Barnsley CCG,31/08/2017,C&M-PMS Prem Actual Rent,PRC DELEGATED CO-COMMISSIONING,BARNSLEY HEALTHCARE FEDERATION,18349049,"(2,150.00)"
Department of Health,NHS Barnsley CCG,31/08/2017,C&M-PMS Prem Healthcentre Rent,PRC DELEGATED CO-COMMISSIONING,BARNSLEY HEALTHCARE FEDERATION,18349049,"(6,795.48)"
Department of Health,NHS Barnsley CCG,31/08/2017,C&M-APMS Contract Value,PRC DELEGATED CO-COMMISSIONING,BARNSLEY HEALTHCARE FEDERATION,18349050,"30,050.14 "
Department of Health,NHS Barnsley CCG,31/08/2017,C&M-APMS DES Minor Surgery,PRC DELEGATED CO-COMMISSIONING,BARNSLEY HEALTHCARE FEDERATION,18349050,170.48 
Department of Health,NHS Barnsley CCG,31/08/2017,C&M-APMS OOH Opt Outs,PRC DELEGATED CO-COMMISSIONING,BARNSLEY HEALTHCARE FEDERATION,18349050,841.80 
Department of Health,NHS Barnsley CCG,31/08/2017,C&M-APMS Prem Actual Rent,PRC DELEGATED CO-COMMISSIONING,BARNSLEY HEALTHCARE FEDERATION,18349050,"2,150.00 "
Department of Health,NHS Barnsley CCG,31/08/2017,C&M-APMS Prem Healthcentre Rent,PRC DELEGATED CO-COMMISSIONING,BARNSLEY HEALTHCARE FEDERATION,18349050,"6,795.48 "
Department of Health,NHS Barnsley CCG,31/08/2017,C&M-APMS Prem Rates,PRC DELEGATED CO-COMMISSIONING,BARNSLEY HEALTHCARE FEDERATION,18349050,478.00 
Department of Health,NHS Barnsley CCG,31/08/2017,C&M-PMS Prem Actual Rent,PRC DELEGATED CO-COMMISSIONING,BARNSLEY HEALTHCARE FEDERATION,18349050,"2,150.00 "
Department of Health,NHS Barnsley CCG,31/08/2017,C&M-PMS Prem Healthcentre Rent,PRC DELEGATED CO-COMMISSIONING,BARNSLEY HEALTHCARE FEDERATION,18349050,"6,795.48 "
Department of Health,NHS Barnsley CCG,31/08/2017,C&M-PMS QOF Aspiration,PRC DELEGATED CO-COMMISSIONING,BARNSLEY HEALTHCARE FEDERATION,18349050,"2,184.66 "
Department of Health,NHS Barnsley CCG,31/08/2017,C&M-APMS Contract Value,PRC DELEGATED CO-COMMISSIONING,BARNSLEY HEALTHCARE FEDERATION,18349052,"27,629.46 "
Department of Health,NHS Barnsley CCG,31/08/2017,C&M-APMS OOH Opt Outs,PRC DELEGATED CO-COMMISSIONING,BARNSLEY HEALTHCARE FEDERATION,18349052,769.50 
Department of Health,NHS Barnsley CCG,31/08/2017,C&M-APMS Prem Actual Rent,PRC DELEGATED CO-COMMISSIONING,BARNSLEY HEALTHCARE FEDERATION,18349052,"6,200.00 "
Department of Health,NHS Barnsley CCG,31/08/2017,C&M-APMS Prem Rates,PRC DELEGATED CO-COMMISSIONING,BARNSLEY HEALTHCARE FEDERATION,18349052,"1,444.00 "
Department of Health,NHS Barnsley CCG,31/08/2017,C&M-PMS Prem Actual Rent,PRC DELEGATED CO-COMMISSIONING,BARNSLEY HEALTHCARE FEDERATION,18349052,"6,200.00 "
Department of Health,NHS Barnsley CCG,31/08/2017,C&M-PMS QOF Aspiration,PRC DELEGATED CO-COMMISSIONING,BARNSLEY HEALTHCARE FEDERATION,18349052,"2,549.33 "
Department of Health,NHS Barnsley CCG,31/08/2017,C&M-PMS Contract Value,PRC DELEGATED CO-COMMISSIONING,BARNSLEY HEALTHCARE FEDERATION CIC (GOLDTHORPE),18355274,"39,692.51 "
Department of Health,NHS Barnsley CCG,31/08/2017,C&M-PMS DES Minor Surgery,PRC DELEGATED CO-COMMISSIONING,BARNSLEY HEALTHCARE FEDERATION CIC (GOLDTHORPE),18355274,255.72 
Department of Health,NHS Barnsley CCG,31/08/2017,C&M-PMS Out of Hours Opt Outs,PRC DELEGATED CO-COMMISSIONING,BARNSLEY HEALTHCARE FEDERATION CIC (GOLDTHORPE),18355274,"1,107.70 "
Department of Health,NHS Barnsley CCG,31/08/2017,C&M-PMS Prem Healthcentre Rent,PRC DELEGATED CO-COMMISSIONING,BARNSLEY HEALTHCARE FEDERATION CIC (GOLDTHORPE),18355274,"10,835.69 "
Department of Health,NHS Barnsley CCG,31/08/2017,C&M-PMS QOF Aspiration,PRC DELEGATED CO-COMMISSIONING,BARNSLEY HEALTHCARE FEDERATION CIC (GOLDTHORPE),18355274,"4,628.16 "
Department of Health,NHS Barnsley CCG,31/08/2017,Hcare Srv Rec Fdtn Trust-CQUIN,ACUTE COMMISSIONING,BARNSLEY HOSPITAL NHS FOUNDATION TRUST,18287301,"260,797.00 "
Department of Health,NHS Barnsley CCG,31/08/2017,Hcare Srv Rec Fdtn Trust-Contract Baseline,ACUTE COMMISSIONING,BARNSLEY HOSPITAL NHS FOUNDATION TRUST,18287301,"11,025,785.00 "
Department of Health,NHS Barnsley CCG,31/08/2017,Hcare Srv Rec Fdtn Trust-CQUIN,ACUTE COMMISSIONING,BARNSLEY HOSPITAL NHS FOUNDATION TRUST,18287302,"10,847.00 "
Department of Health,NHS Barnsley CCG,31/08/2017,Hcare Srv Rec Fdtn Trust-Contract Baseline,ACUTE COMMISSIONING,BARNSLEY HOSPITAL NHS FOUNDATION TRUST,18287302,"562,297.00 "
Department of Health,NHS Barnsley CCG,31/08/2017,Chrgs from SLA,COMMISSIONING,BARNSLEY METROPOLITAN BOROUGH COUNCIL,18302356,"16,667.00 "
Department of Health,NHS Barnsley CCG,31/08/2017,Clinical&Medical-Othe Public Sector,COMMISSIONING - NON ACUTE,BARNSLEY METROPOLITAN BOROUGH COUNCIL,18302356,"358,766.00 "
Department of Health,NHS Barnsley CCG,31/08/2017,Clinical&Medical-Othe Public Sector,MENTAL HEALTH SERVICES - OTHER,BARNSLEY METROPOLITAN BOROUGH COUNCIL,18302356,"9,883.00 "
Department of Health,NHS Barnsley CCG,31/08/2017,Clinical&Medical-Voluntary Sector,CHILD AND ADOLESCENT MENTAL HEALTH,BARNSLEY METROPOLITAN BOROUGH COUNCIL,18302356,"71,367.00 "
Department of Health,NHS Barnsley CCG,31/08/2017,Expenditure on Drugs Action Team,MENTAL HEALTH SERVICES - SPECIALIST SERVICES,BARNSLEY METROPOLITAN BOROUGH COUNCIL,18302356,"41,667.00 "
Department of Health,NHS Barnsley CCG,31/08/2017,GROSSRECOVEMPBEN - SALARIES & WAGES,COLLABORATIVE COMMISSIONING,BARNSLEY METROPOLITAN BOROUGH COUNCIL,18302356,"(5,219.00)"
Department of Health,NHS Barnsley CCG,31/08/2017,Local AuthorityRevenue-Non-Contract,COMMUNITY SERVICES,BARNSLEY METROPOLITAN BOROUGH COUNCIL,18302356,"(2,663.00)"
Department of Health,NHS Barnsley CCG,31/08/2017,Participation Fees,COMMUNITY SERVICES,BARNSLEY METROPOLITAN BOROUGH COUNCIL,18302356,"11,750.00 "
Department of Health,NHS Barnsley CCG,31/08/2017,Services From Local Authorities,COMMISSIONING - NON ACUTE,BARNSLEY METROPOLITAN BOROUGH COUNCIL,18302356,"6,304.00 "
Department of Health,NHS Barnsley CCG,31/08/2017,Soc Care-Bed-Based Int Care Servs,COMMUNITY SERVICES,BARNSLEY METROPOLITAN BOROUGH COUNCIL,18302356,"311,017.00 "
Department of Health,NHS Barnsley CCG,31/08/2017,Soc Care-Maintaining Eligib Crit,COMMUNITY SERVICES,BARNSLEY METROPOLITAN BOROUGH COUNCIL,18302356,"395,417.00 "
Department of Health,NHS Barnsley CCG,31/08/2017,Soc Care-Other Soc Care,COMMUNITY SERVICES,BARNSLEY METROPOLITAN BOROUGH COUNCIL,18302356,"58,333.00 "
Department of Health,NHS Barnsley CCG,31/08/2017,Soc Care-Re-ablement services,COMMUNITY SERVICES,BARNSLEY METROPOLITAN BOROUGH COUNCIL,18302356,"4,083.00 "
Department of Health,NHS Barnsley CCG,31/08/2017,Social Care-Res Short Stay Exp,COMMUNITY SERVICES,BARNSLEY METROPOLITAN BOROUGH COUNCIL,18302356,"63,417.00 "
Department of Health,NHS Barnsley CCG,31/08/2017,Cont Care- Children,CHC CHILDREN,BARNSLEY METROPOLITAN BOROUGH COUNCIL,18612963,"117,589.42 "
Department of Health,NHS Barnsley CCG,31/08/2017,Clinical&Medical-Commercial Sector,ACUTE COMMISSIONING,BMI HEALTHCARE COLLECTIONS,18613313,"46,550.44 "
Department of Health,NHS Barnsley CCG,31/08/2017,Clinical&Medical-Commercial Sector,ACUTE COMMISSIONING,CLAREMONT HOSPITAL,18363592,"54,938.00 "
Department of Health,NHS Barnsley CCG,31/08/2017,C&M-GMS Global Sum,PRC DELEGATED CO-COMMISSIONING,NHS BARNSLEY CCG GP PRACTICE,18557430,"78,314.76 "
Department of Health,NHS Barnsley CCG,31/08/2017,C&M-GMS Prem Healthcentre Rent,PRC DELEGATED CO-COMMISSIONING,NHS BARNSLEY CCG GP PRACTICE,18557430,"24,168.48 "
Department of Health,NHS Barnsley CCG,31/08/2017,C&M-GMS QOF Aspiration,PRC DELEGATED CO-COMMISSIONING,NHS BARNSLEY CCG GP PRACTICE,18557430,"9,861.43 "
Department of Health,NHS Barnsley CCG,31/08/2017,C&M-PMS Contract Value,PRC DELEGATED CO-COMMISSIONING,NHS BARNSLEY CCG GP PRACTICE,18355269,"(29,882.80)"
Department of Health,NHS Barnsley CCG,31/08/2017,C&M-PMS DES UNPLANNED ADMISSIONS,PRC DELEGATED CO-COMMISSIONING,NHS BARNSLEY CCG GP PRACTICE,18355269,"(1,730.26)"
Department of Health,NHS Barnsley CCG,31/08/2017,C&M-PMS GP Statutory Levy,PRC DELEGATED CO-COMMISSIONING,NHS BARNSLEY CCG GP PRACTICE,18355269,(190.45)
Department of Health,NHS Barnsley CCG,31/08/2017,C&M-PMS Out of Hours Opt Outs,PRC DELEGATED CO-COMMISSIONING,NHS BARNSLEY CCG GP PRACTICE,18355269,"(2,301.69)"
Department of Health,NHS Barnsley CCG,31/08/2017,C&M-PMS Voluntary Levy,PRC DELEGATED CO-COMMISSIONING,NHS BARNSLEY CCG GP PRACTICE,18355269,(33.31)
Department of Health,NHS Barnsley CCG,31/08/2017,C&M-PMS Contract Value,PRC DELEGATED CO-COMMISSIONING,NHS BARNSLEY CCG GP PRACTICE,18355270,"48,259.80 "
Department of Health,NHS Barnsley CCG,31/08/2017,C&M-PMS Out of Hours Opt Outs,PRC DELEGATED CO-COMMISSIONING,NHS BARNSLEY CCG GP PRACTICE,18355270,"1,481.78 "
Department of Health,NHS Barnsley CCG,31/08/2017,C&M-PMS QOF Aspiration,PRC DELEGATED CO-COMMISSIONING,NHS BARNSLEY CCG GP PRACTICE,18355270,"5,260.11 "
Department of Health,NHS Barnsley CCG,31/08/2017,C&M-PMS Contract Value,PRC DELEGATED CO-COMMISSIONING,NHS BARNSLEY CCG GP PRACTICE,18349022,"(50,621.30)"
Department of Health,NHS Barnsley CCG,31/08/2017,C&M-PMS DES UNPLANNED ADMISSIONS,PRC DELEGATED CO-COMMISSIONING,NHS BARNSLEY CCG GP PRACTICE,18349022,"(3,080.40)"
Department of Health,NHS Barnsley CCG,31/08/2017,C&M-PMS GP Statutory Levy,PRC DELEGATED CO-COMMISSIONING,NHS BARNSLEY CCG GP PRACTICE,18349022,(355.86)
Department of Health,NHS Barnsley CCG,31/08/2017,C&M-PMS Out of Hours Opt Outs,PRC DELEGATED CO-COMMISSIONING,NHS BARNSLEY CCG GP PRACTICE,18349022,"(4,399.00)"
Department of Health,NHS Barnsley CCG,31/08/2017,C&M-PMS Voluntary Levy,PRC DELEGATED CO-COMMISSIONING,NHS BARNSLEY CCG GP PRACTICE,18349022,(62.25)
Department of Health,NHS Barnsley CCG,31/08/2017,ME - PMS GP Prior Year ERs,PRC DELEGATED CO-COMMISSIONING,NHS BARNSLEY CCG GP PRACTICE,18349022,"(6,006.00)"
Department of Health,NHS Barnsley CCG,31/08/2017,ME-PMS GP Pension EEs-PMS,PRC DELEGATED CO-COMMISSIONING,NHS BARNSLEY CCG GP PRACTICE,18349022,"(7,233.75)"
Department of Health,NHS Barnsley CCG,31/08/2017,ME-PMS GP Pension ERs Adjs - PMS,PRC DELEGATED CO-COMMISSIONING,NHS BARNSLEY CCG GP PRACTICE,18349022,"(7,705.28)"
Department of Health,NHS Barnsley CCG,31/08/2017,ME-PMS GP Prior Year EEs,PRC DELEGATED CO-COMMISSIONING,NHS BARNSLEY CCG GP PRACTICE,18349022,"(5,670.00)"
Department of Health,NHS Barnsley CCG,31/08/2017,C&M-PMS Contract Value,PRC DELEGATED CO-COMMISSIONING,NHS BARNSLEY CCG GP PRACTICE,18349023,"88,976.24 "
Department of Health,NHS Barnsley CCG,31/08/2017,C&M-PMS DES Minor Surgery,PRC DELEGATED CO-COMMISSIONING,NHS BARNSLEY CCG GP PRACTICE,18349023,"1,662.18 "
Department of Health,NHS Barnsley CCG,31/08/2017,C&M-PMS DES UNPLANNED ADMISSIONS,PRC DELEGATED CO-COMMISSIONING,NHS BARNSLEY CCG GP PRACTICE,18349023,"8,492.33 "
Department of Health,NHS Barnsley CCG,31/08/2017,C&M-PMS Out of Hours Opt Outs,PRC DELEGATED CO-COMMISSIONING,NHS BARNSLEY CCG GP PRACTICE,18349023,"2,603.80 "
Department of Health,NHS Barnsley CCG,31/08/2017,C&M-PMS PCO Locum Adop/Pat/Mat,PRC DELEGATED CO-COMMISSIONING,NHS BARNSLEY CCG GP PRACTICE,18349023,"4,511.46 "
Department of Health,NHS Barnsley CCG,31/08/2017,C&M-PMS Prem Healthcentre Rent,PRC DELEGATED CO-COMMISSIONING,NHS BARNSLEY CCG GP PRACTICE,18349023,"19,781.47 "
Department of Health,NHS Barnsley CCG,31/08/2017,C&M-PMS Prem Notional Rent,PRC DELEGATED CO-COMMISSIONING,NHS BARNSLEY CCG GP PRACTICE,18349023,"1,833.33 "
Department of Health,NHS Barnsley CCG,31/08/2017,C&M-PMS Prem Rates,PRC DELEGATED CO-COMMISSIONING,NHS BARNSLEY CCG GP PRACTICE,18349023,289.00 
Department of Health,NHS Barnsley CCG,31/08/2017,C&M-PMS QOF Aspiration,PRC DELEGATED CO-COMMISSIONING,NHS BARNSLEY CCG GP PRACTICE,18349023,"10,231.70 "
Department of Health,NHS Barnsley CCG,31/08/2017,ME - PMS GP Prior Year ERs,PRC DELEGATED CO-COMMISSIONING,NHS BARNSLEY CCG GP PRACTICE,18349023,749.85 
Department of Health,NHS Barnsley CCG,31/08/2017,ME-PMS GP Prior Year EEs,PRC DELEGATED CO-COMMISSIONING,NHS BARNSLEY CCG GP PRACTICE,18349023,545.39 
Department of Health,NHS Barnsley CCG,31/08/2017,C&M-PMS Contract Value,PRC DELEGATED CO-COMMISSIONING,NHS BARNSLEY CCG GP PRACTICE,18349026,"(28,737.30)"
Department of Health,NHS Barnsley CCG,31/08/2017,C&M-PMS GP Statutory Levy,PRC DELEGATED CO-COMMISSIONING,NHS BARNSLEY CCG GP PRACTICE,18349026,(225.58)
Department of Health,NHS Barnsley CCG,31/08/2017,C&M-PMS Out of Hours Opt Outs,PRC DELEGATED CO-COMMISSIONING,NHS BARNSLEY CCG GP PRACTICE,18349026,"(2,503.44)"
Department of Health,NHS Barnsley CCG,31/08/2017,C&M-PMS Voluntary Levy,PRC DELEGATED CO-COMMISSIONING,NHS BARNSLEY CCG GP PRACTICE,18349026,(39.46)
Department of Health,NHS Barnsley CCG,31/08/2017,ME-PMS GP Pension EEs-PMS,PRC DELEGATED CO-COMMISSIONING,NHS BARNSLEY CCG GP PRACTICE,18349026,"(1,549.91)"
Department of Health,NHS Barnsley CCG,31/08/2017,ME-PMS GP Pension ERs Adjs - PMS,PRC DELEGATED CO-COMMISSIONING,NHS BARNSLEY CCG GP PRACTICE,18349026,"(1,650.94)"
Department of Health,NHS Barnsley CCG,31/08/2017,C&M-PMS Contract Value,PRC DELEGATED CO-COMMISSIONING,NHS BARNSLEY CCG GP PRACTICE,18349027,"50,635.93 "
Department of Health,NHS Barnsley CCG,31/08/2017,C&M-PMS DES Minor Surgery,PRC DELEGATED CO-COMMISSIONING,NHS BARNSLEY CCG GP PRACTICE,18349027,980.26 
Department of Health,NHS Barnsley CCG,31/08/2017,C&M-PMS Out of Hours Opt Outs,PRC DELEGATED CO-COMMISSIONING,NHS BARNSLEY CCG GP PRACTICE,18349027,"1,478.15 "
Department of Health,NHS Barnsley CCG,31/08/2017,C&M-PMS Prem Healthcentre Rent,PRC DELEGATED CO-COMMISSIONING,NHS BARNSLEY CCG GP PRACTICE,18349027,"21,557.02 "
Department of Health,NHS Barnsley CCG,31/08/2017,C&M-PMS QOF Aspiration,PRC DELEGATED CO-COMMISSIONING,NHS BARNSLEY CCG GP PRACTICE,18349027,"5,374.86 "
Department of Health,NHS Barnsley CCG,31/08/2017,C&M-GMS DES Extended Hours Access,PRC DELEGATED CO-COMMISSIONING,NHS BARNSLEY CCG GP PRACTICE,18557433,"4,643.13 "
Department of Health,NHS Barnsley CCG,31/08/2017,C&M-GMS Global Sum,PRC DELEGATED CO-COMMISSIONING,NHS BARNSLEY CCG GP PRACTICE,18557433,"71,333.92 "
Department of Health,NHS Barnsley CCG,31/08/2017,C&M-GMS PCO Other,PRC DELEGATED CO-COMMISSIONING,NHS BARNSLEY CCG GP PRACTICE,18557433,452.60 
Department of Health,NHS Barnsley CCG,31/08/2017,C&M-GMS Prem Notional Rent,PRC DELEGATED CO-COMMISSIONING,NHS BARNSLEY CCG GP PRACTICE,18557433,"4,483.33 "
Department of Health,NHS Barnsley CCG,31/08/2017,C&M-GMS QOF Aspiration,PRC DELEGATED CO-COMMISSIONING,NHS BARNSLEY CCG GP PRACTICE,18557433,"8,873.87 "
Department of Health,NHS Barnsley CCG,31/08/2017,C&M-GMS DES Extended Hours Access,PRC DELEGATED CO-COMMISSIONING,NHS BARNSLEY CCG GP PRACTICE,18557437,"5,287.70 "
Department of Health,NHS Barnsley CCG,31/08/2017,C&M-GMS DES UNPLANNED ADMISSIONS,PRC DELEGATED CO-COMMISSIONING,NHS BARNSLEY CCG GP PRACTICE,18557437,"6,311.69 "
Department of Health,NHS Barnsley CCG,31/08/2017,C&M-GMS Global Sum,PRC DELEGATED CO-COMMISSIONING,NHS BARNSLEY CCG GP PRACTICE,18557437,"88,444.59 "
Department of Health,NHS Barnsley CCG,31/08/2017,C&M-GMS Prem Healthcentre Rent,PRC DELEGATED CO-COMMISSIONING,NHS BARNSLEY CCG GP PRACTICE,18557437,"3,289.55 "
Department of Health,NHS Barnsley CCG,31/08/2017,C&M-GMS Prem Notional Rent,PRC DELEGATED CO-COMMISSIONING,NHS BARNSLEY CCG GP PRACTICE,18557437,"1,572.92 "
Department of Health,NHS Barnsley CCG,31/08/2017,C&M-GMS Prem Rates,PRC DELEGATED CO-COMMISSIONING,NHS BARNSLEY CCG GP PRACTICE,18557437,"1,209.00 "
Department of Health,NHS Barnsley CCG,31/08/2017,C&M-GMS QOF Aspiration,PRC DELEGATED CO-COMMISSIONING,NHS BARNSLEY CCG GP PRACTICE,18557437,"8,682.82 "
Department of Health,NHS Barnsley CCG,31/08/2017,C&M-PMS Contract Value,PRC DELEGATED CO-COMMISSIONING,NHS BARNSLEY CCG GP PRACTICE,18349030,"(72,442.00)"
Department of Health,NHS Barnsley CCG,31/08/2017,C&M-PMS Funding Differential Review,PRC DELEGATED CO-COMMISSIONING,NHS BARNSLEY CCG GP PRACTICE,18349030,(56.40)
Department of Health,NHS Barnsley CCG,31/08/2017,C&M-PMS GP Statutory Levy,PRC DELEGATED CO-COMMISSIONING,NHS BARNSLEY CCG GP PRACTICE,18349030,(563.28)
Department of Health,NHS Barnsley CCG,31/08/2017,C&M-PMS Out of Hours Opt Outs,PRC DELEGATED CO-COMMISSIONING,NHS BARNSLEY CCG GP PRACTICE,18349030,"(6,010.67)"
Department of Health,NHS Barnsley CCG,31/08/2017,C&M-PMS Voluntary Levy,PRC DELEGATED CO-COMMISSIONING,NHS BARNSLEY CCG GP PRACTICE,18349030,(98.53)
Department of Health,NHS Barnsley CCG,31/08/2017,ME - PMS TPS Added Years Adj EEs,PRC DELEGATED CO-COMMISSIONING,NHS BARNSLEY CCG GP PRACTICE,18349030,(610.96)
Department of Health,NHS Barnsley CCG,31/08/2017,ME-PMS GP Pension EEs-PMS,PRC DELEGATED CO-COMMISSIONING,NHS BARNSLEY CCG GP PRACTICE,18349030,"(13,675.09)"
Department of Health,NHS Barnsley CCG,31/08/2017,ME-PMS GP Pension ERs Adjs - PMS,PRC DELEGATED CO-COMMISSIONING,NHS BARNSLEY CCG GP PRACTICE,18349030,"(14,281.29)"
Department of Health,NHS Barnsley CCG,31/08/2017,C&M-PMS Contract Value,PRC DELEGATED CO-COMMISSIONING,NHS BARNSLEY CCG GP PRACTICE,18349031,"127,027.70 "
Department of Health,NHS Barnsley CCG,31/08/2017,C&M-PMS DES Minor Surgery,PRC DELEGATED CO-COMMISSIONING,NHS BARNSLEY CCG GP PRACTICE,18349031,"9,845.22 "
Department of Health,NHS Barnsley CCG,31/08/2017,C&M-PMS Funding Differential Review,PRC DELEGATED CO-COMMISSIONING,NHS BARNSLEY CCG GP PRACTICE,18349031,94.00 
Department of Health,NHS Barnsley CCG,31/08/2017,C&M-PMS Out of Hours Opt Outs,PRC DELEGATED CO-COMMISSIONING,NHS BARNSLEY CCG GP PRACTICE,18349031,"3,557.90 "
Department of Health,NHS Barnsley CCG,31/08/2017,C&M-PMS Prem Notional Rent,PRC DELEGATED CO-COMMISSIONING,NHS BARNSLEY CCG GP PRACTICE,18349031,"6,333.33 "
Department of Health,NHS Barnsley CCG,31/08/2017,C&M-PMS Prem Rates,PRC DELEGATED CO-COMMISSIONING,NHS BARNSLEY CCG GP PRACTICE,18349031,"1,851.00 "
Department of Health,NHS Barnsley CCG,31/08/2017,C&M-PMS QOF Aspiration,PRC DELEGATED CO-COMMISSIONING,NHS BARNSLEY CCG GP PRACTICE,18349031,"14,324.80 "
Department of Health,NHS Barnsley CCG,31/08/2017,C&M-PMS Cost of Drugs -Dispensing,LOCAL ENHANCED SERVICES,NHS BARNSLEY CCG GP PRACTICE,18576294,"(78,835.92)"
Department of Health,NHS Barnsley CCG,31/08/2017,C&M-PMS Prsc Chrgs Cll&Rmttd by GPs,PRC DELEGATED CO-COMMISSIONING,NHS BARNSLEY CCG GP PRACTICE,18576294,"(5,048.20)"
Department of Health,NHS Barnsley CCG,31/08/2017,C&M-PMS Cost of Drugs -Dispensing,LOCAL ENHANCED SERVICES,NHS BARNSLEY CCG GP PRACTICE,18576295,"162,158.41 "
Department of Health,NHS Barnsley CCG,31/08/2017,C&M-PMS Prof fees Dispensing,PRC DELEGATED CO-COMMISSIONING,NHS BARNSLEY CCG GP PRACTICE,18576295,"26,183.27 "
Department of Health,NHS Barnsley CCG,31/08/2017,C&M-PMS Prsc Chrgs Cll&Rmttd by GPs,LOCAL ENHANCED SERVICES,NHS BARNSLEY CCG GP PRACTICE,18576295,"5,048.20 "
Department of Health,NHS Barnsley CCG,31/08/2017,C&M-GMS Global Sum,PRC DELEGATED CO-COMMISSIONING,NHS BARNSLEY CCG GP PRACTICE,18562763,"20,614.79 "
Department of Health,NHS Barnsley CCG,31/08/2017,C&M-GMS MPIG Correction Factor,PRC DELEGATED CO-COMMISSIONING,NHS BARNSLEY CCG GP PRACTICE,18562763,607.19 
Department of Health,NHS Barnsley CCG,31/08/2017,C&M-GMS Prem Healthcentre Rent,PRC DELEGATED CO-COMMISSIONING,NHS BARNSLEY CCG GP PRACTICE,18562763,"2,198.57 "
Department of Health,NHS Barnsley CCG,31/08/2017,C&M-GMS QOF Aspiration,PRC DELEGATED CO-COMMISSIONING,NHS BARNSLEY CCG GP PRACTICE,18562763,"2,409.31 "
Department of Health,NHS Barnsley CCG,31/08/2017,C&M-GMS DES Extended Hours Access,PRC DELEGATED CO-COMMISSIONING,NHS BARNSLEY CCG GP PRACTICE,18557442,"2,352.68 "
Department of Health,NHS Barnsley CCG,31/08/2017,C&M-GMS DES UNPLANNED ADMISSIONS,PRC DELEGATED CO-COMMISSIONING,NHS BARNSLEY CCG GP PRACTICE,18557442,"3,789.17 "
Department of Health,NHS Barnsley CCG,31/08/2017,C&M-GMS Global Sum,PRC DELEGATED CO-COMMISSIONING,NHS BARNSLEY CCG GP PRACTICE,18557442,"38,875.41 "
Department of Health,NHS Barnsley CCG,31/08/2017,C&M-GMS Prem Notional Rent,PRC DELEGATED CO-COMMISSIONING,NHS BARNSLEY CCG GP PRACTICE,18557442,"1,416.67 "
Department of Health,NHS Barnsley CCG,31/08/2017,C&M-GMS Prem Rates,PRC DELEGATED CO-COMMISSIONING,NHS BARNSLEY CCG GP PRACTICE,18557442,"1,072.00 "
Department of Health,NHS Barnsley CCG,31/08/2017,C&M-GMS QOF Aspiration,PRC DELEGATED CO-COMMISSIONING,NHS BARNSLEY CCG GP PRACTICE,18557442,"4,292.81 "
Department of Health,NHS Barnsley CCG,31/08/2017,C&M-PMS Contract Value,PRC DELEGATED CO-COMMISSIONING,NHS BARNSLEY CCG GP PRACTICE,18349028,"(22,815.66)"
Department of Health,NHS Barnsley CCG,31/08/2017,C&M-PMS Funding Differential Review,PRC DELEGATED CO-COMMISSIONING,NHS BARNSLEY CCG GP PRACTICE,18349028,"(1,522.25)"
Department of Health,NHS Barnsley CCG,31/08/2017,C&M-PMS GP Statutory Levy,PRC DELEGATED CO-COMMISSIONING,NHS BARNSLEY CCG GP PRACTICE,18349028,(155.38)
Department of Health,NHS Barnsley CCG,31/08/2017,C&M-PMS Out of Hours Opt Outs,PRC DELEGATED CO-COMMISSIONING,NHS BARNSLEY CCG GP PRACTICE,18349028,"(1,851.74)"
Department of Health,NHS Barnsley CCG,31/08/2017,C&M-PMS Voluntary Levy,PRC DELEGATED CO-COMMISSIONING,NHS BARNSLEY CCG GP PRACTICE,18349028,(27.18)
Department of Health,NHS Barnsley CCG,31/08/2017,ME-PMS GP Pension EEs-PMS,PRC DELEGATED CO-COMMISSIONING,NHS BARNSLEY CCG GP PRACTICE,18349028,"(1,350.92)"
Department of Health,NHS Barnsley CCG,31/08/2017,ME-PMS GP Pension ERs Adjs - PMS,PRC DELEGATED CO-COMMISSIONING,NHS BARNSLEY CCG GP PRACTICE,18349028,"(1,339.74)"
Department of Health,NHS Barnsley CCG,31/08/2017,C&M-PMS Contract Value,PRC DELEGATED CO-COMMISSIONING,NHS BARNSLEY CCG GP PRACTICE,18349029,"39,273.48 "
Department of Health,NHS Barnsley CCG,31/08/2017,C&M-PMS DES Minor Surgery,PRC DELEGATED CO-COMMISSIONING,NHS BARNSLEY CCG GP PRACTICE,18349029,"1,278.60 "
Department of Health,NHS Barnsley CCG,31/08/2017,C&M-PMS Funding Differential Review,PRC DELEGATED CO-COMMISSIONING,NHS BARNSLEY CCG GP PRACTICE,18349029,"2,537.08 "
Department of Health,NHS Barnsley CCG,31/08/2017,C&M-PMS Out of Hours Opt Outs,PRC DELEGATED CO-COMMISSIONING,NHS BARNSLEY CCG GP PRACTICE,18349029,"1,116.98 "
Department of Health,NHS Barnsley CCG,31/08/2017,C&M-PMS Prem Healthcentre Rent,PRC DELEGATED CO-COMMISSIONING,NHS BARNSLEY CCG GP PRACTICE,18349029,"2,989.52 "
Department of Health,NHS Barnsley CCG,31/08/2017,C&M-PMS Prem Notional Rent,PRC DELEGATED CO-COMMISSIONING,NHS BARNSLEY CCG GP PRACTICE,18349029,"8,600.00 "
Department of Health,NHS Barnsley CCG,31/08/2017,C&M-PMS Prem Rates,PRC DELEGATED CO-COMMISSIONING,NHS BARNSLEY CCG GP PRACTICE,18349029,"1,030.00 "
Department of Health,NHS Barnsley CCG,31/08/2017,C&M-PMS Prem Water Rates,PRC DELEGATED CO-COMMISSIONING,NHS BARNSLEY CCG GP PRACTICE,18349029,144.82 
Department of Health,NHS Barnsley CCG,31/08/2017,C&M-PMS QOF Aspiration,PRC DELEGATED CO-COMMISSIONING,NHS BARNSLEY CCG GP PRACTICE,18349029,"2,711.68 "
Department of Health,NHS Barnsley CCG,31/08/2017,C&M-GMS DES Extended Hours Access,PRC DELEGATED CO-COMMISSIONING,NHS BARNSLEY CCG GP PRACTICE,18557450,"6,347.43 "
Department of Health,NHS Barnsley CCG,31/08/2017,C&M-GMS Global Sum,PRC DELEGATED CO-COMMISSIONING,NHS BARNSLEY CCG GP PRACTICE,18557450,"103,078.25 "
Department of Health,NHS Barnsley CCG,31/08/2017,C&M-GMS Prem Notional Rent,PRC DELEGATED CO-COMMISSIONING,NHS BARNSLEY CCG GP PRACTICE,18557450,"6,333.33 "
Department of Health,NHS Barnsley CCG,31/08/2017,C&M-GMS Prem Water Rates,PRC DELEGATED CO-COMMISSIONING,NHS BARNSLEY CCG GP PRACTICE,18557450,330.96 
Department of Health,NHS Barnsley CCG,31/08/2017,C&M-GMS QOF Aspiration,PRC DELEGATED CO-COMMISSIONING,NHS BARNSLEY CCG GP PRACTICE,18557450,"11,180.37 "
Department of Health,NHS Barnsley CCG,31/08/2017,C&M-PMS Contract Value,PRC DELEGATED CO-COMMISSIONING,NHS BARNSLEY CCG GP PRACTICE,18349032,"(54,422.80)"
Department of Health,NHS Barnsley CCG,31/08/2017,C&M-PMS GP Statutory Levy,PRC DELEGATED CO-COMMISSIONING,NHS BARNSLEY CCG GP PRACTICE,18349032,(396.63)
Department of Health,NHS Barnsley CCG,31/08/2017,C&M-PMS Out of Hours Opt Outs,PRC DELEGATED CO-COMMISSIONING,NHS BARNSLEY CCG GP PRACTICE,18349032,"(4,732.12)"
Department of Health,NHS Barnsley CCG,31/08/2017,C&M-PMS PCO Seniority,PRC DELEGATED CO-COMMISSIONING,NHS BARNSLEY CCG GP PRACTICE,18349032,"(1,188.26)"
Department of Health,NHS Barnsley CCG,31/08/2017,C&M-PMS Voluntary Levy,PRC DELEGATED CO-COMMISSIONING,NHS BARNSLEY CCG GP PRACTICE,18349032,(69.38)
Department of Health,NHS Barnsley CCG,31/08/2017,ME - PMS GP Prior Year ERs,PRC DELEGATED CO-COMMISSIONING,NHS BARNSLEY CCG GP PRACTICE,18349032,"(5,923.64)"
Department of Health,NHS Barnsley CCG,31/08/2017,ME-PMS GP Pension EEs-PMS,PRC DELEGATED CO-COMMISSIONING,NHS BARNSLEY CCG GP PRACTICE,18349032,"(5,854.93)"
Department of Health,NHS Barnsley CCG,31/08/2017,ME-PMS GP Pension ERs Adjs - PMS,PRC DELEGATED CO-COMMISSIONING,NHS BARNSLEY CCG GP PRACTICE,18349032,"(6,078.83)"
Department of Health,NHS Barnsley CCG,31/08/2017,ME-PMS GP Prior Year EEs,PRC DELEGATED CO-COMMISSIONING,NHS BARNSLEY CCG GP PRACTICE,18349032,"(4,419.93)"
Department of Health,NHS Barnsley CCG,31/08/2017,C&M-PMS Contract Value,PRC DELEGATED CO-COMMISSIONING,NHS BARNSLEY CCG GP PRACTICE,18374022,"95,716.95 "
Department of Health,NHS Barnsley CCG,31/08/2017,C&M-PMS DES Minor Surgery,PRC DELEGATED CO-COMMISSIONING,NHS BARNSLEY CCG GP PRACTICE,18374022,"2,003.14 "
Department of Health,NHS Barnsley CCG,31/08/2017,C&M-PMS Out of Hours Opt Outs,PRC DELEGATED CO-COMMISSIONING,NHS BARNSLEY CCG GP PRACTICE,18374022,"2,799.25 "
Department of Health,NHS Barnsley CCG,31/08/2017,C&M-PMS Prem Notional Rent,PRC DELEGATED CO-COMMISSIONING,NHS BARNSLEY CCG GP PRACTICE,18374022,"13,500.00 "
Department of Health,NHS Barnsley CCG,31/08/2017,C&M-PMS Prem Rates,PRC DELEGATED CO-COMMISSIONING,NHS BARNSLEY CCG GP PRACTICE,18374022,"2,353.07 "
Department of Health,NHS Barnsley CCG,31/08/2017,C&M-PMS Prem Water Rates,PRC DELEGATED CO-COMMISSIONING,NHS BARNSLEY CCG GP PRACTICE,18374022,91.31 
Department of Health,NHS Barnsley CCG,31/08/2017,C&M-PMS QOF Aspiration,PRC DELEGATED CO-COMMISSIONING,NHS BARNSLEY CCG GP PRACTICE,18374022,"9,956.81 "
Department of Health,NHS Barnsley CCG,31/08/2017,ME - PMS GP Prior Year ERs,PRC DELEGATED CO-COMMISSIONING,NHS BARNSLEY CCG GP PRACTICE,18374022,"8,223.89 "
Department of Health,NHS Barnsley CCG,31/08/2017,ME-PMS GP Prior Year AVCs,PRC DELEGATED CO-COMMISSIONING,NHS BARNSLEY CCG GP PRACTICE,18374022,585.27 
Department of Health,NHS Barnsley CCG,31/08/2017,ME-PMS GP Prior Year EEs,PRC DELEGATED CO-COMMISSIONING,NHS BARNSLEY CCG GP PRACTICE,18374022,"7,853.99 "
Department of Health,NHS Barnsley CCG,31/08/2017,C&M-GMS DES Extended Hours Access,PRC DELEGATED CO-COMMISSIONING,NHS BARNSLEY CCG GP PRACTICE,18557447,"5,167.05 "
Department of Health,NHS Barnsley CCG,31/08/2017,C&M-GMS Global Sum,PRC DELEGATED CO-COMMISSIONING,NHS BARNSLEY CCG GP PRACTICE,18557447,"90,441.46 "
Department of Health,NHS Barnsley CCG,31/08/2017,C&M-GMS Prem Healthcentre Rent,PRC DELEGATED CO-COMMISSIONING,NHS BARNSLEY CCG GP PRACTICE,18557447,"31,619.95 "
Department of Health,NHS Barnsley CCG,31/08/2017,C&M-GMS QOF Aspiration,PRC DELEGATED CO-COMMISSIONING,NHS BARNSLEY CCG GP PRACTICE,18557447,"9,868.55 "
Department of Health,NHS Barnsley CCG,31/08/2017,C&M-GMS Global Sum,PRC DELEGATED CO-COMMISSIONING,NHS BARNSLEY CCG GP PRACTICE,18557454,"76,521.13 "
Department of Health,NHS Barnsley CCG,31/08/2017,C&M-GMS Prem Rates,PRC DELEGATED CO-COMMISSIONING,NHS BARNSLEY CCG GP PRACTICE,18557454,"2,927.00 "
Department of Health,NHS Barnsley CCG,31/08/2017,C&M-GMS QOF Aspiration,PRC DELEGATED CO-COMMISSIONING,NHS BARNSLEY CCG GP PRACTICE,18557454,"10,562.04 "
Department of Health,NHS Barnsley CCG,31/08/2017,C&M-GMS LES Demand Mgmt,COMMISSIONING SCHEMES,NHS BARNSLEY CCG GP PRACTICE,18246963,"23,952.41 "
Department of Health,NHS Barnsley CCG,31/08/2017,Clinical&Medical-Clinical Other,COMMISSIONING SCHEMES,NHS BARNSLEY CCG GP PRACTICE,18246963,"16,293.92 "
Department of Health,NHS Barnsley CCG,31/08/2017,C&M-PMS Contract Value,PRC DELEGATED CO-COMMISSIONING,NHS BARNSLEY CCG GP PRACTICE,18349033,"(78,273.95)"
Department of Health,NHS Barnsley CCG,31/08/2017,C&M-PMS Funding Differential Review,PRC DELEGATED CO-COMMISSIONING,NHS BARNSLEY CCG GP PRACTICE,18349033,(122.25)
Department of Health,NHS Barnsley CCG,31/08/2017,C&M-PMS GP Statutory Levy,PRC DELEGATED CO-COMMISSIONING,NHS BARNSLEY CCG GP PRACTICE,18349033,(401.83)
Department of Health,NHS Barnsley CCG,31/08/2017,C&M-PMS Out of Hours Opt Outs,PRC DELEGATED CO-COMMISSIONING,NHS BARNSLEY CCG GP PRACTICE,18349033,"(6,734.21)"
Department of Health,NHS Barnsley CCG,31/08/2017,C&M-PMS Voluntary Levy,PRC DELEGATED CO-COMMISSIONING,NHS BARNSLEY CCG GP PRACTICE,18349033,(70.29)
Department of Health,NHS Barnsley CCG,31/08/2017,ME - PMS TPS Added Years Adj EEs,PRC DELEGATED CO-COMMISSIONING,NHS BARNSLEY CCG GP PRACTICE,18349033,(266.67)
Department of Health,NHS Barnsley CCG,31/08/2017,ME-PMS GP Pension EEs-PMS,PRC DELEGATED CO-COMMISSIONING,NHS BARNSLEY CCG GP PRACTICE,18349033,"(7,973.72)"
Department of Health,NHS Barnsley CCG,31/08/2017,ME-PMS GP Pension ERs Adjs - PMS,PRC DELEGATED CO-COMMISSIONING,NHS BARNSLEY CCG GP PRACTICE,18349033,"(8,664.47)"
Department of Health,NHS Barnsley CCG,31/08/2017,C&M-PMS Contract Value,PRC DELEGATED CO-COMMISSIONING,NHS BARNSLEY CCG GP PRACTICE,18349034,"137,831.50 "
Department of Health,NHS Barnsley CCG,31/08/2017,C&M-PMS DES Minor Surgery,PRC DELEGATED CO-COMMISSIONING,NHS BARNSLEY CCG GP PRACTICE,18349034,"8,225.66 "
Department of Health,NHS Barnsley CCG,31/08/2017,C&M-PMS Funding Differential Review,PRC DELEGATED CO-COMMISSIONING,NHS BARNSLEY CCG GP PRACTICE,18349034,203.75 
Department of Health,NHS Barnsley CCG,31/08/2017,C&M-PMS Out of Hours Opt Outs,PRC DELEGATED CO-COMMISSIONING,NHS BARNSLEY CCG GP PRACTICE,18349034,"3,976.10 "
Department of Health,NHS Barnsley CCG,31/08/2017,C&M-PMS PCO Other,PRC DELEGATED CO-COMMISSIONING,NHS BARNSLEY CCG GP PRACTICE,18349034,523.70 
Department of Health,NHS Barnsley CCG,31/08/2017,C&M-PMS Prem Notional Rent,PRC DELEGATED CO-COMMISSIONING,NHS BARNSLEY CCG GP PRACTICE,18349034,"11,166.67 "
Department of Health,NHS Barnsley CCG,31/08/2017,C&M-PMS QOF Aspiration,PRC DELEGATED CO-COMMISSIONING,NHS BARNSLEY CCG GP PRACTICE,18349034,"10,469.27 "
Department of Health,NHS Barnsley CCG,31/08/2017,C&M-PMS Contract Value,PRC DELEGATED CO-COMMISSIONING,NHS BARNSLEY CCG GP PRACTICE,18349035,"(53,066.10)"
Department of Health,NHS Barnsley CCG,31/08/2017,C&M-PMS GP Statutory Levy,PRC DELEGATED CO-COMMISSIONING,NHS BARNSLEY CCG GP PRACTICE,18349035,(380.40)
Department of Health,NHS Barnsley CCG,31/08/2017,C&M-PMS Out of Hours Opt Outs,PRC DELEGATED CO-COMMISSIONING,NHS BARNSLEY CCG GP PRACTICE,18349035,"(4,629.28)"
Department of Health,NHS Barnsley CCG,31/08/2017,C&M-PMS Voluntary Levy,PRC DELEGATED CO-COMMISSIONING,NHS BARNSLEY CCG GP PRACTICE,18349035,(66.54)
Department of Health,NHS Barnsley CCG,31/08/2017,ME-PMS GP Pension EEs-PMS,PRC DELEGATED CO-COMMISSIONING,NHS BARNSLEY CCG GP PRACTICE,18349035,"(8,799.58)"
Department of Health,NHS Barnsley CCG,31/08/2017,ME-PMS GP Pension ERs Adjs - PMS,PRC DELEGATED CO-COMMISSIONING,NHS BARNSLEY CCG GP PRACTICE,18349035,"(9,047.41)"
Department of Health,NHS Barnsley CCG,31/08/2017,C&M-PMS Contract Value,PRC DELEGATED CO-COMMISSIONING,NHS BARNSLEY CCG GP PRACTICE,18349036,"93,633.81 "
Department of Health,NHS Barnsley CCG,31/08/2017,C&M-PMS DES Minor Surgery,PRC DELEGATED CO-COMMISSIONING,NHS BARNSLEY CCG GP PRACTICE,18349036,"5,838.94 "
Department of Health,NHS Barnsley CCG,31/08/2017,C&M-PMS Out of Hours Opt Outs,PRC DELEGATED CO-COMMISSIONING,NHS BARNSLEY CCG GP PRACTICE,18349036,"2,729.55 "
Department of Health,NHS Barnsley CCG,31/08/2017,C&M-PMS PCO Other,PRC DELEGATED CO-COMMISSIONING,NHS BARNSLEY CCG GP PRACTICE,18349036,523.70 
Department of Health,NHS Barnsley CCG,31/08/2017,C&M-PMS Prem Actual Rent,PRC DELEGATED CO-COMMISSIONING,NHS BARNSLEY CCG GP PRACTICE,18349036,"12,708.33 "
Department of Health,NHS Barnsley CCG,31/08/2017,C&M-PMS Prem Rates,PRC DELEGATED CO-COMMISSIONING,NHS BARNSLEY CCG GP PRACTICE,18349036,"2,491.00 "
Department of Health,NHS Barnsley CCG,31/08/2017,C&M-PMS QOF Aspiration,PRC DELEGATED CO-COMMISSIONING,NHS BARNSLEY CCG GP PRACTICE,18349036,"10,713.50 "
Department of Health,NHS Barnsley CCG,31/08/2017,C&M-PMS Contract Value,PRC DELEGATED CO-COMMISSIONING,NHS BARNSLEY CCG GP PRACTICE,18349037,"(46,469.55)"
Department of Health,NHS Barnsley CCG,31/08/2017,C&M-PMS GP Statutory Levy,PRC DELEGATED CO-COMMISSIONING,NHS BARNSLEY CCG GP PRACTICE,18349037,(370.70)
Department of Health,NHS Barnsley CCG,31/08/2017,C&M-PMS Out of Hours Opt Outs,PRC DELEGATED CO-COMMISSIONING,NHS BARNSLEY CCG GP PRACTICE,18349037,"(4,095.52)"
Department of Health,NHS Barnsley CCG,31/08/2017,ME-PMS GP Pension EEs-PMS,PRC DELEGATED CO-COMMISSIONING,NHS BARNSLEY CCG GP PRACTICE,18349037,"(2,446.12)"
Department of Health,NHS Barnsley CCG,31/08/2017,ME-PMS GP Pension ERs Adjs - PMS,PRC DELEGATED CO-COMMISSIONING,NHS BARNSLEY CCG GP PRACTICE,18349037,"(2,598.98)"
Department of Health,NHS Barnsley CCG,31/08/2017,C&M-PMS Contract Value,PRC DELEGATED CO-COMMISSIONING,NHS BARNSLEY CCG GP PRACTICE,18349038,"82,830.17 "
Department of Health,NHS Barnsley CCG,31/08/2017,C&M-PMS DES Minor Surgery,PRC DELEGATED CO-COMMISSIONING,NHS BARNSLEY CCG GP PRACTICE,18349038,"2,642.44 "
Department of Health,NHS Barnsley CCG,31/08/2017,C&M-PMS Out of Hours Opt Outs,PRC DELEGATED CO-COMMISSIONING,NHS BARNSLEY CCG GP PRACTICE,18349038,"2,390.45 "
Department of Health,NHS Barnsley CCG,31/08/2017,C&M-PMS Prem Actual Rent,PRC DELEGATED CO-COMMISSIONING,NHS BARNSLEY CCG GP PRACTICE,18349038,"8,566.67 "
Department of Health,NHS Barnsley CCG,31/08/2017,C&M-PMS QOF Aspiration,PRC DELEGATED CO-COMMISSIONING,NHS BARNSLEY CCG GP PRACTICE,18349038,"7,978.34 "
Department of Health,NHS Barnsley CCG,31/08/2017,C&M-GMS DES Extended Hours Access,PRC DELEGATED CO-COMMISSIONING,NHS BARNSLEY CCG GP PRACTICE,18557458,"3,218.60 "
Department of Health,NHS Barnsley CCG,31/08/2017,C&M-GMS Global Sum,PRC DELEGATED CO-COMMISSIONING,NHS BARNSLEY CCG GP PRACTICE,18557458,"55,415.04 "
Department of Health,NHS Barnsley CCG,31/08/2017,C&M-GMS Prem Healthcentre Rent,PRC DELEGATED CO-COMMISSIONING,NHS BARNSLEY CCG GP PRACTICE,18557458,"20,521.73 "
Department of Health,NHS Barnsley CCG,31/08/2017,C&M-GMS QOF Aspiration,PRC DELEGATED CO-COMMISSIONING,NHS BARNSLEY CCG GP PRACTICE,18557458,"6,288.65 "
Department of Health,NHS Barnsley CCG,31/08/2017,C&M-PMS Contract Value,PRC DELEGATED CO-COMMISSIONING,NHS BARNSLEY CCG GP PRACTICE,18349039,"(56,573.96)"
Department of Health,NHS Barnsley CCG,31/08/2017,C&M-PMS GP Statutory Levy,PRC DELEGATED CO-COMMISSIONING,NHS BARNSLEY CCG GP PRACTICE,18349039,(435.56)
Department of Health,NHS Barnsley CCG,31/08/2017,C&M-PMS Out of Hours Opt Outs,PRC DELEGATED CO-COMMISSIONING,NHS BARNSLEY CCG GP PRACTICE,18349039,"(4,889.75)"
Department of Health,NHS Barnsley CCG,31/08/2017,C&M-PMS Voluntary Levy,PRC DELEGATED CO-COMMISSIONING,NHS BARNSLEY CCG GP PRACTICE,18349039,(76.19)
Department of Health,NHS Barnsley CCG,31/08/2017,ME - PMS GP Prior Year ERs,PRC DELEGATED CO-COMMISSIONING,NHS BARNSLEY CCG GP PRACTICE,18349039,"(4,924.27)"
Department of Health,NHS Barnsley CCG,31/08/2017,ME-PMS GP Pension EEs-PMS,PRC DELEGATED CO-COMMISSIONING,NHS BARNSLEY CCG GP PRACTICE,18349039,"(6,570.13)"
Department of Health,NHS Barnsley CCG,31/08/2017,ME-PMS GP Pension ERs Adjs - PMS,PRC DELEGATED CO-COMMISSIONING,NHS BARNSLEY CCG GP PRACTICE,18349039,"(7,723.00)"
Department of Health,NHS Barnsley CCG,31/08/2017,ME-PMS GP Prior Year EEs,PRC DELEGATED CO-COMMISSIONING,NHS BARNSLEY CCG GP PRACTICE,18349039,"(4,304.43)"
Department of Health,NHS Barnsley CCG,31/08/2017,C&M-PMS Contract Value,PRC DELEGATED CO-COMMISSIONING,NHS BARNSLEY CCG GP PRACTICE,18349040,"98,898.75 "
Department of Health,NHS Barnsley CCG,31/08/2017,C&M-PMS DES Minor Surgery,PRC DELEGATED CO-COMMISSIONING,NHS BARNSLEY CCG GP PRACTICE,18349040,"4,432.48 "
Department of Health,NHS Barnsley CCG,31/08/2017,C&M-PMS Out of Hours Opt Outs,PRC DELEGATED CO-COMMISSIONING,NHS BARNSLEY CCG GP PRACTICE,18349040,"2,909.86 "
Department of Health,NHS Barnsley CCG,31/08/2017,C&M-PMS Prem Rates,PRC DELEGATED CO-COMMISSIONING,NHS BARNSLEY CCG GP PRACTICE,18349040,"2,716.00 "
Department of Health,NHS Barnsley CCG,31/08/2017,C&M-PMS QOF Aspiration,PRC DELEGATED CO-COMMISSIONING,NHS BARNSLEY CCG GP PRACTICE,18349040,"12,214.31 "
Department of Health,NHS Barnsley CCG,31/08/2017,C&M-GMS Global Sum,PRC DELEGATED CO-COMMISSIONING,NHS BARNSLEY CCG GP PRACTICE,18557466,"45,157.15 "
Department of Health,NHS Barnsley CCG,31/08/2017,C&M-GMS Prem Notional Rent,PRC DELEGATED CO-COMMISSIONING,NHS BARNSLEY CCG GP PRACTICE,18557466,"2,541.67 "
Department of Health,NHS Barnsley CCG,31/08/2017,C&M-GMS Prem Rates,PRC DELEGATED CO-COMMISSIONING,NHS BARNSLEY CCG GP PRACTICE,18557466,454.00 
Department of Health,NHS Barnsley CCG,31/08/2017,C&M-GMS Prem Water Rates,PRC DELEGATED CO-COMMISSIONING,NHS BARNSLEY CCG GP PRACTICE,18557466,94.72 
Department of Health,NHS Barnsley CCG,31/08/2017,C&M-GMS QOF Aspiration,PRC DELEGATED CO-COMMISSIONING,NHS BARNSLEY CCG GP PRACTICE,18557466,"4,060.06 "
Department of Health,NHS Barnsley CCG,31/08/2017,Apprenticeship Levy Payable,BALANCE SHEET,HMRC,18424385,671.00 
Department of Health,NHS Barnsley CCG,31/08/2017,Income tax <1Yr,BALANCE SHEET,HMRC,18424385,"55,227.20 "
Department of Health,NHS Barnsley CCG,31/08/2017,Income tax <1Yr-Student Loans,BALANCE SHEET,HMRC,18424385,"1,985.00 "
Department of Health,NHS Barnsley CCG,31/08/2017,National Insurance < 1 yr-NI- ERS,BALANCE SHEET,HMRC,18424385,"40,265.96 "
Department of Health,NHS Barnsley CCG,31/08/2017,National Insurance < 1 yr-NI-EES,BALANCE SHEET,HMRC,18424385,"30,080.37 "
Department of Health,NHS Barnsley CCG,31/08/2017,Statutory Mat Pay < 1 yr,BALANCE SHEET,HMRC,18424385,"(1,426.70)"
Department of Health,NHS Barnsley CCG,31/08/2017,Cont Care-Learning Disab(<65),CHC ADULT JOINT FUNDED,HOME FROM HOME CARE LTD,18363281,"42,267.60 "
Department of Health,NHS Barnsley CCG,31/08/2017,C&M-GMS Cost of Drugs -Prescribing,LOCAL ENHANCED SERVICES,NHS BARNSLEY CCG GP PRACTICE,18557470,56.80 
Department of Health,NHS Barnsley CCG,31/08/2017,C&M-GMS DES Extended Hours Access,PRC DELEGATED CO-COMMISSIONING,NHS BARNSLEY CCG GP PRACTICE,18557470,"5,578.40 "
Department of Health,NHS Barnsley CCG,31/08/2017,C&M-GMS DES Minor Surgery,PRC DELEGATED CO-COMMISSIONING,NHS BARNSLEY CCG GP PRACTICE,18557470,426.20 
Department of Health,NHS Barnsley CCG,31/08/2017,C&M-GMS Global Sum,PRC DELEGATED CO-COMMISSIONING,NHS BARNSLEY CCG GP PRACTICE,18557470,"83,102.86 "
Department of Health,NHS Barnsley CCG,31/08/2017,C&M-GMS Prem Healthcentre Rent,PRC DELEGATED CO-COMMISSIONING,NHS BARNSLEY CCG GP PRACTICE,18557470,"22,577.78 "
Department of Health,NHS Barnsley CCG,31/08/2017,C&M-GMS Prem Notional Rent,PRC DELEGATED CO-COMMISSIONING,NHS BARNSLEY CCG GP PRACTICE,18557470,"1,312.50 "
Department of Health,NHS Barnsley CCG,31/08/2017,C&M-GMS Prof Fees Prescribing,PRC DELEGATED CO-COMMISSIONING,NHS BARNSLEY CCG GP PRACTICE,18557470,32.40 
Department of Health,NHS Barnsley CCG,31/08/2017,C&M-GMS QOF Aspiration,PRC DELEGATED CO-COMMISSIONING,NHS BARNSLEY CCG GP PRACTICE,18557470,"9,650.40 "
Department of Health,NHS Barnsley CCG,31/08/2017,C&M-PMS Contract Value,PRC DELEGATED CO-COMMISSIONING,NHS BARNSLEY CCG GP PRACTICE,18349041,"(27,204.90)"
Department of Health,NHS Barnsley CCG,31/08/2017,C&M-PMS DES UNPLANNED ADMISSIONS,PRC DELEGATED CO-COMMISSIONING,NHS BARNSLEY CCG GP PRACTICE,18349041,"(1,759.31)"
Department of Health,NHS Barnsley CCG,31/08/2017,C&M-PMS Funding Differential Review,PRC DELEGATED CO-COMMISSIONING,NHS BARNSLEY CCG GP PRACTICE,18349041,(900.50)
Department of Health,NHS Barnsley CCG,31/08/2017,C&M-PMS GP Statutory Levy,PRC DELEGATED CO-COMMISSIONING,NHS BARNSLEY CCG GP PRACTICE,18349041,(217.21)
Department of Health,NHS Barnsley CCG,31/08/2017,C&M-PMS Out of Hours Opt Outs,PRC DELEGATED CO-COMMISSIONING,NHS BARNSLEY CCG GP PRACTICE,18349041,"(2,284.88)"
Department of Health,NHS Barnsley CCG,31/08/2017,C&M-PMS Voluntary Levy,PRC DELEGATED CO-COMMISSIONING,NHS BARNSLEY CCG GP PRACTICE,18349041,(37.99)
Department of Health,NHS Barnsley CCG,31/08/2017,ME-PMS GP Pension EEs-PMS,PRC DELEGATED CO-COMMISSIONING,NHS BARNSLEY CCG GP PRACTICE,18349041,(846.79)
Department of Health,NHS Barnsley CCG,31/08/2017,ME-PMS GP Pension ERs Adjs - PMS,PRC DELEGATED CO-COMMISSIONING,NHS BARNSLEY CCG GP PRACTICE,18349041,(901.99)
Department of Health,NHS Barnsley CCG,31/08/2017,C&M-PMS Contract Value,PRC DELEGATED CO-COMMISSIONING,NHS BARNSLEY CCG GP PRACTICE,18349042,"48,318.57 "
Department of Health,NHS Barnsley CCG,31/08/2017,C&M-PMS Funding Differential Review,PRC DELEGATED CO-COMMISSIONING,NHS BARNSLEY CCG GP PRACTICE,18349042,"1,500.83 "
Department of Health,NHS Barnsley CCG,31/08/2017,C&M-PMS Out of Hours Opt Outs,PRC DELEGATED CO-COMMISSIONING,NHS BARNSLEY CCG GP PRACTICE,18349042,"1,334.40 "
Department of Health,NHS Barnsley CCG,31/08/2017,C&M-PMS Prem Healthcentre Rent,PRC DELEGATED CO-COMMISSIONING,NHS BARNSLEY CCG GP PRACTICE,18349042,"5,694.46 "
Department of Health,NHS Barnsley CCG,31/08/2017,C&M-PMS Prem Notional Rent,PRC DELEGATED CO-COMMISSIONING,NHS BARNSLEY CCG GP PRACTICE,18349042,"3,583.33 "
Department of Health,NHS Barnsley CCG,31/08/2017,C&M-PMS QOF Aspiration,PRC DELEGATED CO-COMMISSIONING,NHS BARNSLEY CCG GP PRACTICE,18349042,"4,640.02 "
Department of Health,NHS Barnsley CCG,31/08/2017,External Data Contracts,BUSINESS INFORMATICS,KIER BUSINESS SERVICES LTD,18285803,"14,111.00 "
Department of Health,NHS Barnsley CCG,31/08/2017,External Data Contracts,COMMISSIONING SCHEMES,KIER BUSINESS SERVICES LTD,18285803,"15,218.00 "
Department of Health,NHS Barnsley CCG,31/08/2017,Telecoms-Data lines,PRIMARY CARE IT,KIER BUSINESS SERVICES LTD,18285803,"49,324.00 "
Department of Health,NHS Barnsley CCG,31/08/2017,C&M-PMS Baseline Adjustment,PRC DELEGATED CO-COMMISSIONING,NHS BARNSLEY CCG GP PRACTICE,18355272,693.00 
Department of Health,NHS Barnsley CCG,31/08/2017,C&M-PMS Contract Value,PRC DELEGATED CO-COMMISSIONING,NHS BARNSLEY CCG GP PRACTICE,18355272,"25,894.08 "
Department of Health,NHS Barnsley CCG,31/08/2017,C&M-PMS DES Minor Surgery,PRC DELEGATED CO-COMMISSIONING,NHS BARNSLEY CCG GP PRACTICE,18355272,511.44 
Department of Health,NHS Barnsley CCG,31/08/2017,C&M-PMS Out of Hours Opt Outs,PRC DELEGATED CO-COMMISSIONING,NHS BARNSLEY CCG GP PRACTICE,18355272,717.80 
Department of Health,NHS Barnsley CCG,31/08/2017,C&M-PMS Prem Notional Rent,PRC DELEGATED CO-COMMISSIONING,NHS BARNSLEY CCG GP PRACTICE,18355272,"4,145.83 "
Department of Health,NHS Barnsley CCG,31/08/2017,C&M-PMS Prem Rates,PRC DELEGATED CO-COMMISSIONING,NHS BARNSLEY CCG GP PRACTICE,18355272,875.00 
Department of Health,NHS Barnsley CCG,31/08/2017,C&M-PMS QOF Aspiration,PRC DELEGATED CO-COMMISSIONING,NHS BARNSLEY CCG GP PRACTICE,18355272,"2,071.11 "
Department of Health,NHS Barnsley CCG,31/08/2017,C&M-PMS Cost of Drugs -Dispensing,LOCAL ENHANCED SERVICES,NHS BARNSLEY CCG GP PRACTICE,18576328,"34,402.14 "
Department of Health,NHS Barnsley CCG,31/08/2017,C&M-PMS Prof fees Dispensing,PRC DELEGATED CO-COMMISSIONING,NHS BARNSLEY CCG GP PRACTICE,18576328,"4,820.07 "
Department of Health,NHS Barnsley CCG,31/08/2017,C&M-PMS Prsc Chrgs Cll&Rmttd by GPs,LOCAL ENHANCED SERVICES,NHS BARNSLEY CCG GP PRACTICE,18576328,"1,272.80 "
Department of Health,NHS Barnsley CCG,31/08/2017,C&M-APMS Contract Value,PRC DELEGATED CO-COMMISSIONING,NHS BARNSLEY CCG GP PRACTICE,18349046,"18,856.62 "
Department of Health,NHS Barnsley CCG,31/08/2017,C&M-APMS OOH Opt Outs,PRC DELEGATED CO-COMMISSIONING,NHS BARNSLEY CCG GP PRACTICE,18349046,527.60 
Department of Health,NHS Barnsley CCG,31/08/2017,C&M-APMS Prem Healthcentre Rent,PRC DELEGATED CO-COMMISSIONING,NHS BARNSLEY CCG GP PRACTICE,18349046,"4,756.91 "
Department of Health,NHS Barnsley CCG,31/08/2017,C&M-PMS Prem Healthcentre Rent,PRC DELEGATED CO-COMMISSIONING,NHS BARNSLEY CCG GP PRACTICE,18349046,"4,756.91 "
Department of Health,NHS Barnsley CCG,31/08/2017,C&M-PMS QOF Aspiration,PRC DELEGATED CO-COMMISSIONING,NHS BARNSLEY CCG GP PRACTICE,18349046,"1,598.13 "
Department of Health,NHS Barnsley CCG,31/08/2017,Cont Care-Learning Disab(65+),CHC ADULT FULLY FUNDED,MENCAP,18633812,"43,172.86 "
Department of Health,NHS Barnsley CCG,31/08/2017,Hcare Srv Rec NHS Trust-CQUIN,ACUTE COMMISSIONING,MID YORKSHIRE HOSPITALS NHS TRUST,18302329,"2,197.00 "
Department of Health,NHS Barnsley CCG,31/08/2017,Hcare Srv Rec NHS Trust-Contract Baseline,ACUTE COMMISSIONING,MID YORKSHIRE HOSPITALS NHS TRUST,18302329,"206,053.00 "
Department of Health,NHS Barnsley CCG,31/08/2017,Clinical&Medical-Commercial Sector,ACUTE COMMISSIONING,ONEHEALTH GROUP,18427426,"189,723.75 "
Department of Health,NHS Barnsley CCG,31/08/2017,Clinical&Medical-Commercial Sector,ACUTE COMMISSIONING,PAIN MANAGEMENT SOLUTIONS LTD,18613051,"28,943.78 "
Department of Health,NHS Barnsley CCG,31/08/2017,C&M-GMS LES Demand Mgmt,COMMISSIONING SCHEMES,NHS BARNSLEY CCG GP PRACTICE,18613030,"21,433.10 "
Department of Health,NHS Barnsley CCG,31/08/2017,Clinical&Medical-Clinical Other,COMMISSIONING SCHEMES,NHS BARNSLEY CCG GP PRACTICE,18613030,"14,580.14 "
Department of Health,NHS Barnsley CCG,31/08/2017,Hcare Srv Rec Fdtn Trust-CQUIN,MENTAL HEALTH CONTRACTS,ROTHERHAM DONCASTER & SOUTH HUMBER MENTAL HEALTH NHS FOUNDATION TRUST,18379534,425.50 
Department of Health,NHS Barnsley CCG,31/08/2017,Hcare Srv Rec Fdtn Trust-Contract Baseline,MENTAL HEALTH CONTRACTS,ROTHERHAM DONCASTER & SOUTH HUMBER MENTAL HEALTH NHS FOUNDATION TRUST,18379534,"34,043.08 "
Department of Health,NHS Barnsley CCG,31/08/2017,Hcare Srv Rec Fdtn Trust-Contract Baseline,OUT OF HOURS,ROTHERHAM NHS FOUNDATION TRUST,18285684,"112,896.76 "
Department of Health,NHS Barnsley CCG,31/08/2017,C&M-GMS DES Extended Hours Access,PRC DELEGATED CO-COMMISSIONING,NHS BARNSLEY CCG GP PRACTICE,18562765,"3,830.88 "
Department of Health,NHS Barnsley CCG,31/08/2017,C&M-GMS DES Learn Dsblty Hlth Chk,PRC DELEGATED CO-COMMISSIONING,NHS BARNSLEY CCG GP PRACTICE,18562765,"3,480.00 "
Department of Health,NHS Barnsley CCG,31/08/2017,C&M-GMS Global Sum,PRC DELEGATED CO-COMMISSIONING,NHS BARNSLEY CCG GP PRACTICE,18562765,"60,171.98 "
Department of Health,NHS Barnsley CCG,31/08/2017,C&M-GMS Prem Actual Rent,PRC DELEGATED CO-COMMISSIONING,NHS BARNSLEY CCG GP PRACTICE,18562765,"8,873.23 "
Department of Health,NHS Barnsley CCG,31/08/2017,C&M-GMS Prem Rates,PRC DELEGATED CO-COMMISSIONING,NHS BARNSLEY CCG GP PRACTICE,18562765,"1,081.00 "
Department of Health,NHS Barnsley CCG,31/08/2017,C&M-GMS QOF Aspiration,PRC DELEGATED CO-COMMISSIONING,NHS BARNSLEY CCG GP PRACTICE,18562765,"7,778.41 "
Department of Health,NHS Barnsley CCG,31/08/2017,Hcare Srv Rec Fdtn Trust-Contract Baseline,ACUTE COMMISSIONING,SHEFFIELD TEACHING HOSPITALS NHS FOUNDATION TRUST,18285766,"174,258.00 "
Department of Health,NHS Barnsley CCG,31/08/2017,Hcare Srv Rec Fdtn Trust-Contract Baseline,ACUTE COMMISSIONING,SHEFFIELD TEACHING HOSPITALS NHS FOUNDATION TRUST,18285774,"1,852,833.00 "
Department of Health,NHS Barnsley CCG,31/08/2017,Hcare Srv Rec Fdtn Trust-CQUIN,COMMUNITY SERVICES,SOUTH WEST YORKSHIRE PARTNERSHIP NHS FOUNDATION TRUST,18250022,"31,210.82 "
Department of Health,NHS Barnsley CCG,31/08/2017,Hcare Srv Rec Fdtn Trust-CQUIN,LEARNING DIFFICULTIES,SOUTH WEST YORKSHIRE PARTNERSHIP NHS FOUNDATION TRUST,18250022,"1,738.00 "
Department of Health,NHS Barnsley CCG,31/08/2017,Hcare Srv Rec Fdtn Trust-CQUIN,MENTAL HEALTH SERVICES - ADULTS,SOUTH WEST YORKSHIRE PARTNERSHIP NHS FOUNDATION TRUST,18250022,"21,214.00 "
Department of Health,NHS Barnsley CCG,31/08/2017,Hcare Srv Rec Fdtn Trust-CQUIN,MENTAL HEALTH SERVICES - OLDER PEOPLE,SOUTH WEST YORKSHIRE PARTNERSHIP NHS FOUNDATION TRUST,18250022,"3,734.00 "
Department of Health,NHS Barnsley CCG,31/08/2017,Clinical&Medical-Serv Recd-F Trsts,PROGRAMME PROJECTS,SOUTH WEST YORKSHIRE PARTNERSHIP NHS FOUNDATION TRUST,18363436,"44,031.25 "
Department of Health,NHS Barnsley CCG,31/08/2017,Hlthcre-Foundation Trsts,COMMUNITY SERVICES,SOUTH WEST YORKSHIRE PARTNERSHIP NHS FOUNDATION TRUST,18427450,"586,546.00 "
Department of Health,NHS Barnsley CCG,31/08/2017,Hcare Srv Rec Fdtn Trust-CQUIN,COMMUNITY SERVICES,SOUTH WEST YORKSHIRE PARTNERSHIP NHS FOUNDATION TRUST,18427458,"21,492.00 "
Department of Health,NHS Barnsley CCG,31/08/2017,Hcare Srv Rec Fdtn Trust-CQUIN,LEARNING DIFFICULTIES,SOUTH WEST YORKSHIRE PARTNERSHIP NHS FOUNDATION TRUST,18427458,"2,013.00 "
Department of Health,NHS Barnsley CCG,31/08/2017,Hcare Srv Rec Fdtn Trust-CQUIN,MENTAL HEALTH SERVICES - ADULTS,SOUTH WEST YORKSHIRE PARTNERSHIP NHS FOUNDATION TRUST,18427458,"2,709.00 "
Department of Health,NHS Barnsley CCG,31/08/2017,Hcare Srv Rec Fdtn Trust-CQUIN,MENTAL HEALTH SERVICES - OLDER PEOPLE,SOUTH WEST YORKSHIRE PARTNERSHIP NHS FOUNDATION TRUST,18427458,"26,835.00 "
Department of Health,NHS Barnsley CCG,31/08/2017,Hcare Srv Rec Fdtn Trust-Contract Baseline,COMMUNITY SERVICES,SOUTH WEST YORKSHIRE PARTNERSHIP NHS FOUNDATION TRUST,18427458,"1,542,551.00 "
Department of Health,NHS Barnsley CCG,31/08/2017,Hcare Srv Rec Fdtn Trust-Contract Baseline,LEARNING DIFFICULTIES,SOUTH WEST YORKSHIRE PARTNERSHIP NHS FOUNDATION TRUST,18427458,"190,611.00 "
Department of Health,NHS Barnsley CCG,31/08/2017,Hcare Srv Rec Fdtn Trust-Contract Baseline,MENTAL HEALTH SERVICES - ADULTS,SOUTH WEST YORKSHIRE PARTNERSHIP NHS FOUNDATION TRUST,18427458,"216,736.00 "
Department of Health,NHS Barnsley CCG,31/08/2017,Hcare Srv Rec Fdtn Trust-Contract Baseline,MENTAL HEALTH SERVICES - OLDER PEOPLE,SOUTH WEST YORKSHIRE PARTNERSHIP NHS FOUNDATION TRUST,18427458,"2,146,830.00 "
Department of Health,NHS Barnsley CCG,31/08/2017,Clinical&Medical-Commercial Sector,NCAS/OATS,SPAMEDICA LTD,18285688,"30,420.84 "
Department of Health,NHS Barnsley CCG,31/08/2017,Cont Care- Prior Year Payments,ADULT JOINT FUNDED CONTINUING CARE,SUN HEALTHCARE LTD,18427405,"47,760.43 "
Department of Health,NHS Barnsley CCG,31/08/2017,Cont Care-Physical Disab (65+),CHC ADULT JOINT FUNDED,SUN HEALTHCARE LTD,18427405,"4,605.03 "
Department of Health,NHS Barnsley CCG,31/08/2017,Clinical&Medical-Voluntary Sector,CHILD AND ADOLESCENT MENTAL HEALTH,WELLSPRING ACADEMY TRUST,18427369,"320,038.00 "
Department of Health,NHS Barnsley CCG,31/08/2017,C&M-PMS Contract Value,PRC DELEGATED CO-COMMISSIONING,NHS BARNSLEY CCG GP PRACTICE,18349043,"(40,957.68)"
Department of Health,NHS Barnsley CCG,31/08/2017,C&M-PMS GP Statutory Levy,PRC DELEGATED CO-COMMISSIONING,NHS BARNSLEY CCG GP PRACTICE,18349043,(287.14)
Department of Health,NHS Barnsley CCG,31/08/2017,C&M-PMS Out of Hours Opt Outs,PRC DELEGATED CO-COMMISSIONING,NHS BARNSLEY CCG GP PRACTICE,18349043,"(3,516.89)"
Department of Health,NHS Barnsley CCG,31/08/2017,C&M-PMS Voluntary Levy,PRC DELEGATED CO-COMMISSIONING,NHS BARNSLEY CCG GP PRACTICE,18349043,(50.23)
Department of Health,NHS Barnsley CCG,31/08/2017,ME-PMS GP Pension EEs-PMS,PRC DELEGATED CO-COMMISSIONING,NHS BARNSLEY CCG GP PRACTICE,18349043,"(1,982.30)"
Department of Health,NHS Barnsley CCG,31/08/2017,ME-PMS GP Pension ERs Adjs - PMS,PRC DELEGATED CO-COMMISSIONING,NHS BARNSLEY CCG GP PRACTICE,18349043,"(2,433.82)"
Department of Health,NHS Barnsley CCG,31/08/2017,C&M-PMS Contract Value,PRC DELEGATED CO-COMMISSIONING,NHS BARNSLEY CCG GP PRACTICE,18349044,"71,213.02 "
Department of Health,NHS Barnsley CCG,31/08/2017,C&M-PMS DES Minor Surgery,PRC DELEGATED CO-COMMISSIONING,NHS BARNSLEY CCG GP PRACTICE,18349044,724.54 
Department of Health,NHS Barnsley CCG,31/08/2017,C&M-PMS Out of Hours Opt Outs,PRC DELEGATED CO-COMMISSIONING,NHS BARNSLEY CCG GP PRACTICE,18349044,"2,103.88 "
Department of Health,NHS Barnsley CCG,31/08/2017,C&M-PMS Prem Actual Rent,PRC DELEGATED CO-COMMISSIONING,NHS BARNSLEY CCG GP PRACTICE,18349044,336.75 
Department of Health,NHS Barnsley CCG,31/08/2017,C&M-PMS Prem Healthcentre Rent,PRC DELEGATED CO-COMMISSIONING,NHS BARNSLEY CCG GP PRACTICE,18349044,"15,939.36 "
Department of Health,NHS Barnsley CCG,31/08/2017,C&M-PMS QOF Aspiration,PRC DELEGATED CO-COMMISSIONING,NHS BARNSLEY CCG GP PRACTICE,18349044,"6,823.95 "
Department of Health,NHS Barnsley CCG,31/08/2017,C&M-GMS LES Quality Premium,COMMISSIONING SCHEMES,NHS BARNSLEY CCG GP PRACTICE,18613265,"15,353.39 "
Department of Health,NHS Barnsley CCG,31/08/2017,C&M-GMS LES GP Comm Incentive Sch,COMMISSIONING SCHEMES,NHS BARNSLEY CCG GP PRACTICE,18613265,"8,124.70 "
Department of Health,NHS Barnsley CCG,31/08/2017,Clinical&Medical-Clinical Other,COMMISSIONING SCHEMES,NHS BARNSLEY CCG GP PRACTICE,18613265,"3,784.52 "
Department of Health,NHS Barnsley CCG,31/08/2017,C&M-PMS Contract Value,PRC DELEGATED CO-COMMISSIONING,NHS BARNSLEY CCG GP PRACTICE,18355267,"(21,866.55)"
Department of Health,NHS Barnsley CCG,31/08/2017,C&M-PMS GP Statutory Levy,PRC DELEGATED CO-COMMISSIONING,NHS BARNSLEY CCG GP PRACTICE,18355267,(159.78)
Department of Health,NHS Barnsley CCG,31/08/2017,C&M-PMS Out of Hours Opt Outs,PRC DELEGATED CO-COMMISSIONING,NHS BARNSLEY CCG GP PRACTICE,18355267,"(1,951.83)"
Department of Health,NHS Barnsley CCG,31/08/2017,C&M-PMS Voluntary Levy,PRC DELEGATED CO-COMMISSIONING,NHS BARNSLEY CCG GP PRACTICE,18355267,(27.95)
Department of Health,NHS Barnsley CCG,31/08/2017,ME-PMS GP Pension EEs-PMS,PRC DELEGATED CO-COMMISSIONING,NHS BARNSLEY CCG GP PRACTICE,18355267,"(1,041.66)"
Department of Health,NHS Barnsley CCG,31/08/2017,ME-PMS GP Pension ERs Adjs - PMS,PRC DELEGATED CO-COMMISSIONING,NHS BARNSLEY CCG GP PRACTICE,18355267,"(1,198.34)"
Department of Health,NHS Barnsley CCG,31/08/2017,C&M-PMS Contract Value,PRC DELEGATED CO-COMMISSIONING,NHS BARNSLEY CCG GP PRACTICE,18355268,"39,480.61 "
Department of Health,NHS Barnsley CCG,31/08/2017,C&M-PMS DES Minor Surgery,PRC DELEGATED CO-COMMISSIONING,NHS BARNSLEY CCG GP PRACTICE,18355268,639.30 
Department of Health,NHS Barnsley CCG,31/08/2017,C&M-PMS Out of Hours Opt Outs,PRC DELEGATED CO-COMMISSIONING,NHS BARNSLEY CCG GP PRACTICE,18355268,"1,124.65 "
Department of Health,NHS Barnsley CCG,31/08/2017,C&M-PMS Prem Healthcentre Rent,PRC DELEGATED CO-COMMISSIONING,NHS BARNSLEY CCG GP PRACTICE,18355268,"1,189.84 "
Department of Health,NHS Barnsley CCG,31/08/2017,C&M-PMS Prem Rates,PRC DELEGATED CO-COMMISSIONING,NHS BARNSLEY CCG GP PRACTICE,18355268,"1,350.00 "
Department of Health,NHS Barnsley CCG,31/08/2017,C&M-PMS QOF Aspiration,PRC DELEGATED CO-COMMISSIONING,NHS BARNSLEY CCG GP PRACTICE,18355268,"4,470.13 "
Department of Health,NHS Barnsley CCG,31/08/2017,Hcare Srv Rec NHS Trust-Contract Baseline,PATIENT TRANSPORT,YORKSHIRE AMBULANCE SERVICE NHS TRUST,18247014,"131,135.60 "
Department of Health,NHS Barnsley CCG,31/08/2017,Hcare Srv Rec NHS Trust-Contract Baseline,NHS 111,YORKSHIRE AMBULANCE SERVICE NHS TRUST,18247017,"47,766.00 "
Department of Health,NHS Barnsley CCG,31/08/2017,Hcare Srv Rec NHS Trust-Contract Baseline,AMBULANCE SERVICES,YORKSHIRE AMBULANCE SERVICE NHS TRUST,18247021,"627,034.00 "
Department of Health,NHS Barnsley CCG,31/07/2017,Hcare Srv Rec Fdtn Trust-CQUIN,ACUTE COMMISSIONING,DONCASTER AND BASSETLAW HOSPITALS NHS FOUNDATION TRUST,18134912,"5,277.00 "
Department of Health,NHS Barnsley CCG,31/07/2017,Hcare Srv Rec Fdtn Trust-Contract Baseline,ACUTE COMMISSIONING,DONCASTER AND BASSETLAW HOSPITALS NHS FOUNDATION TRUST,18134912,"518,453.00 "
Department of Health,NHS Barnsley CCG,31/07/2017,Hcare Srv Rec NHS Trust-CQUIN,ACUTE COMMISSIONING,LEEDS TEACHING HOSPITALS NHS TRUST,18123352,"1,892.70 "
Department of Health,NHS Barnsley CCG,31/07/2017,Hcare Srv Rec NHS Trust-Contract Baseline,ACUTE COMMISSIONING,LEEDS TEACHING HOSPITALS NHS TRUST,18123352,"88,855.50 "
Department of Health,NHS Barnsley CCG,31/07/2017,Other Gen Supplies & Srv,PATIENT TRANSPORT,NHS SHEFFIELD CCG,18239096,"110,821.00 "
Department of Health,NHS Barnsley CCG,31/07/2017,Hcare Srv Rec Fdtn Trust-CQUIN,COMMUNITY SERVICES,ROTHERHAM NHS FOUNDATION TRUST,18210391,"1,020.00 "
Department of Health,NHS Barnsley CCG,31/07/2017,Hcare Srv Rec Fdtn Trust-Contract Baseline,COMMUNITY SERVICES,ROTHERHAM NHS FOUNDATION TRUST,18210391,"40,787.00 "
Department of Health,NHS Barnsley CCG,31/07/2017,Hcare Srv Rec Fdtn Trust-CQUIN,ACUTE COMMISSIONING,ROTHERHAM NHS FOUNDATION TRUST,18229309,"5,842.00 "
Department of Health,NHS Barnsley CCG,31/07/2017,Hcare Srv Rec Fdtn Trust-Contract Baseline,ACUTE COMMISSIONING,ROTHERHAM NHS FOUNDATION TRUST,18229309,"420,949.00 "
Department of Health,NHS Barnsley CCG,31/07/2017,Hcare Srv Rec Fdtn Trust-CQUIN,ACUTE COMMISSIONING,SHEFFIELD CHILDRENS NHS FOUNDATION TRUST,17977383,"1,615.00 "
Department of Health,NHS Barnsley CCG,31/07/2017,Hcare Srv Rec Fdtn Trust-Contract Baseline,ACUTE COMMISSIONING,SHEFFIELD CHILDRENS NHS FOUNDATION TRUST,17977383,"134,793.00 "
Department of Health,NHS Barnsley CCG,31/07/2017,Hcare Srv Rec Fdtn Trust-Contract Baseline,COMMUNITY SERVICES,SOUTH WEST YORKSHIRE PARTNERSHIP NHS FOUNDATION TRUST,18066617,"2,189,826.00 "
Department of Health,NHS Barnsley CCG,31/07/2017,Hcare Srv Rec Fdtn Trust-Contract Baseline,COMMUNITY SERVICES,SOUTH WEST YORKSHIRE PARTNERSHIP NHS FOUNDATION TRUST,18066628,"(729,942.00)"
,,,,,,,"27,595,339.71 "
